fUSD/lending_fUSD_20260116
["ID","MTS","AMOUNT","RATE_DAILY","PERIOD"]
[402190988,1768581037279,-500.0,0.000179,2]
[402190989,1768581037289,-500.0,0.000179,2]
[402190990,1768581037298,-500.0,0.000179,2]
[402190991,1768581037308,-500.0,0.000179,2]
[402190992,1768581037318,-500.0,0.000179,2]
[402190993,1768581037330,-500.0,0.000179,2]
[402190994,1768581037340,-500.0,0.000179,2]
[402190995,1768581037350,-500.0,0.000179,2]
[402190996,1768581037359,-500.0,0.000179,2]
[402190997,1768581037368,-500.0,0.000179,2]
[402190998,1768581037378,-500.0,0.000179,2]
[402190999,1768581037387,-500.0,0.000179,2]
[402191000,1768581037397,-500.0,0.000179,2]
[402191001,1768581037407,-500.0,0.000179,2]
[402191002,1768581037416,-500.0,0.000179,2]
[402191003,1768581037426,-500.0,0.000179,2]
[402191004,1768581037439,-500.0,0.000179,2]
[402191005,1768581037449,-500.0,0.000179,2]
[402191006,1768581037459,-500.0,0.000179,2]
[402191007,1768581037468,-500.0,0.000179,2]
[402191008,1768581037479,-500.0,0.000179,2]
[402191009,1768581037705,-500.0,0.000179,2]
[402191010,1768581037716,-500.0,0.000179,2]
[402191011,1768581037725,-500.0,0.000179,2]
[402191012,1768581037735,-500.0,0.000179,2]
[402191013,1768581037744,-500.0,0.000179,2]
[402191014,1768581037752,-500.0,0.000179,2]
[402191015,1768581037760,-500.0,0.000179,2]
[402191016,1768581037768,-500.0,0.000179,2]
[402191018,1768581037776,-500.0,0.000179,2]
[402191019,1768581037786,-500.0,0.000179,2]
[402191020,1768581037795,-500.0,0.000179,2]
[402191021,1768581037804,-500.0,0.000179,2]
[402191022,1768581037814,-432.15823719,0.000179,2]
[402191023,1768581037824,-6697.0,0.000179,2]
[402191024,1768581037833,-1000.0,0.00017903,2]
[402191026,1768581037843,-1000.0,0.00017906,2]
[402191028,1768581037853,-1000.0,0.00017906,2]
[402191029,1768581037862,-150.0,0.00017907,2]
[402191031,1768581037872,-1000.0,0.00017909,2]
[402191032,1768581037881,-444.0,0.00017918,2]
[402191033,1768581037891,-429.64452717,0.00017918,2]
[402191034,1768581037900,-500.0,0.00017918,2]
[402191035,1768581037909,-483.0,0.00017918,2]
[402191036,1768581037919,-500.0,0.00017918,2]
[402191037,1768581037928,-1348.0,0.00017918,2]
[402191038,1768581037938,-1000.0,0.0001792,2]
[402191039,1768581037948,-1000.0,0.00017929,2]
[402191040,1768581037957,-1000.0,0.00017932,2]
[402191041,1768581037967,-1000.0,0.00017933,2]
[402191042,1768581037976,-1000.0,0.00017943,2]
[402191043,1768581037985,-1000.0,0.00017945,2]
[402191044,1768581037995,-1000.0,0.00017953,2]
[402191045,1768581038004,-1000.0,0.00017954,2]
[402191046,1768581038022,-1000.0,0.00017956,2]
[402191047,1768581038034,-1257.1494649,0.00017964,2]
[402191048,1768581038044,-1000.0,0.00017965,2]
[402191049,1768581038054,-1000.0,0.00017966,2]
[402191051,1768581038065,-150.0,0.00017966,2]
[402191052,1768581038075,-1000.0,0.00017967,2]
[402191053,1768581038085,-1000.0,0.0001797,2]
[402191054,1768581038096,-1000.0,0.00017971,2]
[402191055,1768581038106,-150.0,0.00017971,2]
[402191056,1768581038116,-14603.0,0.00017973,2]
[402191057,1768581038127,-30478.0,0.00017973,2]
[402191058,1768581038138,-444.0,0.00017973,2]
[402191059,1768581038149,-609.06153597,0.00017973,2]
[402191060,1768581038159,-483.0,0.00017973,2]
[402191061,1768581038169,-1348.0,0.00017973,2]
[402191062,1768581038180,-1000.0,0.00017973,2]
[402191063,1768581038190,-1000.0,0.00017973,2]
[402191064,1768581038199,-150.0,0.00017973,2]
[402191065,1768581038209,-150.0,0.00017973,2]
[402191066,1768581038219,-1000.0,0.00017974,2]
[402191067,1768581038233,-1000.0,0.0001798,2]
[402191068,1768581038244,-1000.0,0.00017988,2]
[402191069,1768581038254,-530.26401253,0.0001799,2]
[402191070,1768581038264,-530.26401253,0.0001799,2]
[402191071,1768581038275,-1000.0,0.00017991,2]
[402191072,1768581038285,-1000.0,0.00017992,2]
[402191073,1768581038295,-3637.4132935,0.00017995,2]
[402191074,1768581038305,-2288.8581119,0.00017995,2]
[402191075,1768581038315,-19207.7240188,0.00017995,2]
[402191076,1768581038325,-3421.9965042,0.00017996,2]
[402191077,1768581038335,-6712.2051949,0.00017996,2]
[402191078,1768581038345,-73194.0468587,0.00017996,2]
[402191079,1768581038355,-1000.0,0.00017997,2]
[402191080,1768581038365,-151.0,0.00017997,2]
[402191081,1768581038376,-150.0,0.00017999,2]
[402191082,1768581038388,-277.78078081,0.00017999,2]
[402191083,1768581038399,-1110.78417922,0.00017999,5]
[402191084,1768581038409,-670.59480173,0.00017999,2]
[402191085,1768581038420,-300.0,0.00017999,2]
[402191087,1768581038434,-671.00190679,0.00017999,2]
[402191089,1768581038450,-300.0,0.00017999,2]
[402191092,1768581038461,-666.0,0.00017999,2]
[402191094,1768581038473,-1849.108,0.00017999,2]
[402191096,1768581038485,-1807086.23197898,0.00018,2]
[402191098,1768581038512,-16209.30194096,0.00018,2]
[402191099,1768581038540,-762.79992303,0.00018,2]
[402191100,1768581038553,-947.26419687,0.00018,2]
[402191106,1768581038608,-14498.77573387,0.00018,2]
[402191108,1768581038620,-21032.43181698,0.00018,2]
[402191339,1768581040640,-347.43653168,0.00016261,2]
[402191341,1768581040651,-2006.32801275,0.00016261,2]
[402191345,1768581040683,-177.56,0.00016127,2]
[402191347,1768581040692,-146.23545557,0.00016261,2]
[402191349,1768581040702,-165.07,0.0001644,2]
[402191351,1768581040711,-14624.35103994,0.00017318,2]
[402191353,1768581040720,-1721.13328391,0.00017795,2]
[402191355,1768581040732,-1749.86671609,0.00017795,2]
[402191357,1768581040741,-20753.54788134,0.00018,2]
[402191359,1768581040752,-533494.33199483,0.00018,2]
[402191361,1768581040762,-14214.000003,0.00018,2]
[402191365,1768581040789,-1605.0,0.00018,2]
[402191388,1768581041004,-151.0,0.00016127,2]
[402191390,1768581041013,-1677.871493,0.00017435,2]
[402191397,1768581041079,-4.09389653,0.00017435,2]
[402191408,1768581041172,-1654.87147493,0.00017435,2]
[402191410,1768581041184,-535.13336618,0.00017435,2]
[402191412,1768581041195,-5019.43925557,0.00017435,2]
[402191414,1768581041206,-853.42086176,0.00017435,2]
[402191416,1768581041218,-828.13988267,0.00017435,2]
[402191419,1768581041229,-4051.3808093,0.00017435,2]
[402191420,1768581041238,-766223.89819275,0.00018,2]
[402191422,1768581041248,-456929.23676299,0.00018,2]
[402191424,1768581041257,-16207.84434566,0.00018,2]
[402191426,1768581041266,-2666726.37840942,0.00018,2]
[402191428,1768581041275,-1401.62327149,0.00018,2]
[402191430,1768581041284,-151.1632,0.00018,2]
[402191432,1768581041294,-1000.0,0.00018,2]
[402191434,1768581041303,-1000.0,0.00018,2]
[402191436,1768581041312,-1000.0,0.00018,2]
[402191438,1768581041322,-1000.0,0.00018,2]
[402191440,1768581041331,-1000.0,0.00018,2]
[402191442,1768581041341,-1000.0,0.00018,2]
[402191444,1768581041350,-1000.0,0.00018,2]
[402191446,1768581041359,-1000.0,0.00018,2]
[402191448,1768581041368,-1000.0,0.00018,2]
[402191450,1768581041377,-1000.0,0.00018,2]
[402191452,1768581041386,-1000.0,0.00018,2]
[402191454,1768581041395,-1000.0,0.00018,2]
[402191456,1768581041404,-1000.0,0.00018,2]
[402191458,1768581041414,-1000.0,0.00018,2]
[402191460,1768581041423,-1000.0,0.00018,2]
[402191462,1768581041435,-1000.0,0.00018,2]
[402191464,1768581041444,-1000.0,0.00018,2]
[402191466,1768581041454,-1000.0,0.00018,2]
[402191468,1768581041463,-1000.0,0.00018,2]
[402191470,1768581041474,-1000.0,0.00018,2]
[402191472,1768581041483,-1000.0,0.00018,2]
[402191474,1768581041492,-1000.0,0.00018,2]
[402191476,1768581041501,-1000.0,0.00018,2]
[402191477,1768581041511,-1000.0,0.00018,2]
[402191479,1768581041521,-1000.0,0.00018,2]
[402191481,1768581041530,-1000.0,0.00018,2]
[402191484,1768581041540,-1000.0,0.00018,2]
[402191485,1768581041549,-1000.0,0.00018,2]
[402191487,1768581041559,-961.02146272,0.00018,2]
[402191489,1768581041569,-150.0,0.00018,2]
[402191491,1768581041578,-150.0,0.00018,2]
[402191493,1768581041588,-171.211,0.00018,2]
[402191495,1768581041597,-150.0,0.00018,2]
[402191497,1768581041606,-150.299,0.00018,2]
[402191499,1768581041615,-277.611,0.00018,2]
[402191501,1768581041624,-150.135,0.00018,2]
[402191503,1768581041633,-150.0,0.00018,2]
[402191505,1768581041642,-150.0,0.00018,2]
[402191507,1768581041651,-3076.44060319,0.00018,2]
[402191509,1768581041660,-150.0,0.00018,2]
[402191511,1768581041670,-11165.44638684,0.00018,2]
[402191513,1768581041680,-150.0,0.00018,2]
[402191515,1768581041689,-3698.11865408,0.00018,2]
[402191517,1768581041698,-151.0,0.00018,2]
[402191519,1768581041707,-306.05036136,0.00018,2]
[402191521,1768581041716,-150.0,0.00018,7]
[402191523,1768581041726,-1275.528,0.00018,2]
[402191525,1768581041735,-412.0,0.00018,2]
[402191527,1768581041743,-151.0,0.00018,2]
[402191529,1768581041752,-151.0,0.00018,2]
[402191531,1768581041761,-151.0,0.00018,2]
[402191533,1768581041771,-151.0,0.00018,2]
[402191535,1768581041780,-151.0,0.00018,2]
[402191537,1768581041789,-351.045642,0.00018,2]
[402191539,1768581041799,-351.045642,0.00018,2]
[402191541,1768581041808,-351.045642,0.00018,2]
[402191543,1768581041818,-351.045642,0.00018,2]
[402191545,1768581041827,-686036.96575458,0.00018,2]
[402191547,1768581041840,-250.28079999,0.00018,2]
[402191549,1768581041851,-386.76440778,0.00018,2]
[402191556,1768581041908,-1533.99999997,0.00018,2]
[402191558,1768581041918,-6882186.65510227,0.00018,2]
[402191560,1768581041933,-315.041611,0.00018,2]
[402191563,1768581041944,-335.38,0.00018,2]
[402191694,1768581043331,-151.0,0.00016155,2]
[402191696,1768581043342,-5240.16856111,0.00018,2]
[402191819,1768581066840,500.0,0.00015773,2]
[402191820,1768581067859,500.0,0.00015773,2]
[402191821,1768581068259,500.0,0.00015773,2]
[402191822,1768581070118,500.0,0.00015773,2]
[402191823,1768581074931,501.39853349,0.00015773,2]
[402191824,1768581077705,412.99045558,0.00015773,2]
[402191825,1768581077852,500.0,0.00015773,2]
[402191826,1768581082013,500.0,0.00015773,2]
[402191827,1768581124748,500.0,0.00015773,2]
[402191828,1768581125037,411.35009775,0.00015773,2]
[402191829,1768581126605,500.0,0.00015773,2]
[402191830,1768581130027,500.0,0.00015773,2]
[402191831,1768581131017,217.157295,0.00015773,2]
[402191832,1768581134089,500.0,0.00015773,2]
[402191833,1768581135015,500.0,0.00015773,2]
[402191834,1768581138518,155.68164347,0.00030136,120]
[402191835,1768581140017,3023.81,8.318e-05,2]
[402191836,1768581140453,3023.81,8.756e-05,2]
[402191837,1768581140706,3023.81,9.194e-05,2]
[402191838,1768581141121,3023.81,9.632e-05,2]
[402191839,1768581141358,3023.81,0.0001007,2]
[402191840,1768581141590,3023.81,0.00010507,2]
[402191841,1768581141801,3023.81,0.00010945,2]
[402191842,1768581142027,3023.81,0.00011383,2]
[402191843,1768581142233,3023.81,0.00011821,2]
[402191844,1768581142494,3023.81,0.00012259,2]
[402191845,1768581142699,3023.81,0.00012697,2]
[402191846,1768581142925,3023.81,0.00013134,2]
[402191847,1768581143128,3023.81,0.00013572,2]
[402191848,1768581143416,3023.81,0.0001401,2]
[402191849,1768581143576,3023.81,0.00014448,2]
[402191850,1768581143833,3023.81,0.00014886,2]
[402191851,1768581144333,3023.81,0.00015323,2]
[402191852,1768581144655,3023.81,0.00015761,2]
[402191853,1768581161603,1498.007278,0.0001598,2]
[402191854,1768581186933,500.0,0.00015773,2]
[402191855,1768581187192,500.0,0.00015773,2]
[402191856,1768581195036,500.0,0.00015773,2]
[402191857,1768581198853,500.0,0.00015773,2]
[402191858,1768581243862,10521.63,0.00013232,2]
[402191859,1768581246197,500.0,0.00015773,2]
[402191860,1768581246753,500.0,0.00015773,2]
[402191861,1768581255737,502.20709128,0.00015773,2]
[402191862,1768581256489,500.0,0.00015773,2]
[402191863,1768581262102,527.765,0.00030137,120]
[402191864,1768581310706,500.0,0.00015773,2]
[402191865,1768581310790,500.0,0.00015773,2]
[402191866,1768581317432,500.0,0.00015773,2]
[402191867,1768581320635,500.0,0.00015773,2]
[402191868,1768581331998,3777.71,0.0001594,2]
[402191869,1768581378970,500.0,0.00015773,2]
[402191870,1768581421838,1481.17,0.00015905,2]
[402191871,1768581427148,500.0,0.00015773,2]
[402191872,1768581432883,500.0,0.00015773,2]
[402191873,1768581433007,500.0,0.00015773,2]
[402191874,1768581436648,43028.18,0.00015909,2]
[402191875,1768581439467,500.0,0.00015773,2]
[402191876,1768581440822,500.0,0.00015773,2]
[402191877,1768581467297,42362.02267503,0.00015825,2]
[402191878,1768581551115,154.25,0.00012334,2]
[402191879,1768581551277,154.25,0.00013876,2]
[402191880,1768581597377,-154.25,0.00015417,2]
[402191881,1768581597399,-373.17783486,0.00015472,2]
[402191882,1768581607851,746.0,0.00030137,120]
[402191883,1768581612409,-248.61363329,0.00015399,2]
[402191884,1768581615659,-250.0,0.00015399,2]
[402191885,1768581617218,-151.63403555,0.00015399,2]
[402191886,1768581619197,-215.36640458,0.00015399,2]
[402191887,1768581621230,-176.11130083,0.00015399,2]
[402191888,1768581754171,-291.28539149,0.00015398,2]
[402191889,1768581755763,-8.71460851,0.00015398,2]
[402191890,1768581755786,-300.0,0.00015398,2]
[402191891,1768581755808,-44.28870531,0.00015398,2]
[402191892,1768581758858,-165.75554207,0.00015398,2]
[402191893,1768581760940,-89.95575262,0.00015398,2]
[402191894,1768581760961,-87.62239389,0.00015398,2]
[402191895,1768581762737,-265.22671173,0.00015398,2]
[402191896,1768581765185,-247.15089438,0.00015398,2]
[402191897,1768581765208,-33.05989876,0.00015398,2]
[402191898,1768581768438,-161.94010124,0.00015398,2]
[402191899,1768581768459,-42.06350865,0.00015398,2]
[402191900,1768581771249,8387.03,0.00015077,2]
[402191901,1768581771947,-177.9353373,0.00015398,2]
[402191902,1768581827465,987.26,0.00014915,2]
[402191903,1768581856361,625.72,0.00015221,2]
[402191904,1768581856383,1329.47146,0.00015221,2]
[402191905,1768581856978,-258.59322349,0.00015298,2]
[402191906,1768581857002,-195.0,0.000153,2]
[402191907,1768581857028,-258.59322348,0.00015301,2]
[402191908,1768581857051,-258.59322348,0.00015304,2]
[402191909,1768581898439,683.5,0.00030137,120]
[402191914,1768581948228,206.31,0.00015001,2]
[402191915,1768581965544,500.0,0.00015,2]
[402191916,1768582005424,10000.01,0.00014916,2]
[402191917,1768582005445,10000.01,0.00014916,2]
[402191918,1768582005466,10000.01,0.00014916,2]
[402191919,1768582005487,10000.01,0.00014916,2]
[402191920,1768582005508,10000.01,0.00014916,2]
[402191921,1768582005529,10000.01,0.00014916,2]
[402191922,1768582005551,10000.01,0.00014916,2]
[402191923,1768582005574,10000.01,0.00014916,2]
[402191924,1768582005651,10000.01,0.00014916,2]
[402191925,1768582005673,10000.01,0.00014916,2]
[402191926,1768582005700,195267.95,0.00014916,2]
[402191927,1768582006267,-341.0058,0.00015298,2]
[402191928,1768582035320,10000.01,0.00014995,2]
[402191929,1768582035345,1513.27,0.00014995,2]
[402191930,1768582037513,234.22420722,0.00014916,2]
[402191931,1768582044931,-200.0,0.0001539,2]
[402191932,1768582044952,-500.0,0.0001539,2]
[402191933,1768582044975,-151.0,0.0001539,2]
[402191934,1768582044996,-151.0,0.0001539,2]
[402191935,1768582045019,-151.0,0.0001539,2]
[402191936,1768582045041,-151.0,0.0001539,2]
[402191937,1768582045063,-151.0,0.0001539,2]
[402191938,1768582045084,-200.0,0.0001539,2]
[402191939,1768582045106,-151.0,0.0001539,2]
[402191940,1768582045127,-151.0,0.0001539,2]
[402191941,1768582045149,-151.0,0.0001539,2]
[402191942,1768582045171,-151.0,0.0001539,2]
[402191943,1768582045192,-500.0,0.0001539,2]
[402191944,1768582045213,-151.0,0.0001539,2]
[402191945,1768582045234,-151.0,0.0001539,2]
[402191946,1768582045256,-500.0,0.0001539,2]
[402191947,1768582045278,-151.0,0.0001539,2]
[402191948,1768582045300,-151.0,0.0001539,2]
[402191949,1768582045322,-500.0,0.0001539,2]
[402191950,1768582045347,-151.0,0.0001539,2]
[402191951,1768582045369,-500.0,0.0001539,2]
[402191952,1768582045391,-151.0,0.0001539,2]
[402191953,1768582045412,-500.0,0.0001539,2]
[402191954,1768582045433,-151.0,0.0001539,2]
[402191955,1768582045454,-500.0,0.0001539,2]
[402191956,1768582045476,-151.0,0.0001539,2]
[402191957,1768582045498,-500.0,0.0001539,2]
[402191958,1768582045520,-151.0,0.0001539,2]
[402191959,1768582045544,-500.0,0.0001539,2]
[402191960,1768582045566,-151.0,0.0001539,2]
[402191961,1768582045588,-500.0,0.0001539,2]
[402191962,1768582045610,-151.0,0.0001539,2]
[402191963,1768582045631,-500.0,0.0001539,2]
[402191964,1768582045654,-151.0,0.0001539,2]
[402191965,1768582045676,-500.0,0.0001539,2]
[402191966,1768582045700,-151.0,0.0001539,2]
[402191967,1768582045726,-151.0,0.0001539,2]
[402191968,1768582045749,-151.0,0.0001539,2]
[402191969,1768582045776,-165.63029078,0.00015393,2]
[402191970,1768582045801,-300.0,0.00015397,2]
[402191971,1768582045823,-216.77410467,0.00015398,2]
[402191972,1768582045846,-276.0,0.00015398,2]
[402191973,1768582045868,-300.0,0.00015398,2]
[402191974,1768582045891,-300.0,0.00015398,2]
[402191975,1768582045915,-1200.0,0.00015398,2]
[402191976,1768582045938,-300.0,0.00015398,2]
[402191977,1768582045958,-250.0,0.00015398,2]
[402191978,1768582045984,-1667.59560455,0.00015398,2]
[402191979,1768582114434,-300.0,0.00015389,2]
[402191980,1768582114457,-300.0,0.00015389,2]
[402191981,1768582114480,-300.0,0.00015389,2]
[402191982,1768582114502,-600.0,0.00015389,2]
[402191983,1768582114523,-250.0,0.00015389,2]
[402191984,1768582114545,-300.0,0.00015389,2]
[402191985,1768582114569,-233.81304694,0.00015389,2]
[402191986,1768582114591,-300.0,0.00015389,2]
[402191987,1768582114613,-151.0,0.0001539,2]
[402191988,1768582114634,-151.0,0.0001539,2]
[402191989,1768582114657,-151.0,0.0001539,2]
[402191990,1768582114678,-151.0,0.0001539,2]
[402191991,1768582114703,-151.0,0.0001539,2]
[402191992,1768582114728,-151.0,0.0001539,2]
[402191993,1768582114751,-151.0,0.0001539,2]
[402191994,1768582114776,-500.0,0.0001539,2]
[402191995,1768582114801,-500.0,0.0001539,2]
[402191996,1768582114824,-500.0,0.0001539,2]
[402191997,1768582114848,-500.0,0.0001539,2]
[402191998,1768582114871,-500.0,0.0001539,2]
[402191999,1768582114893,-500.0,0.0001539,2]
[402192000,1768582114916,-500.0,0.0001539,2]
[402192001,1768582114937,-500.0,0.0001539,2]
[402192002,1768582114960,-500.0,0.0001539,2]
[402192003,1768582114982,-500.0,0.0001539,2]
[402192004,1768582115007,-500.0,0.0001539,2]
[402192005,1768582115030,-200.0,0.0001539,2]
[402192006,1768582115054,-211.20333349,0.0001539,2]
[402192007,1768582115075,-300.0,0.00015392,2]
[402192008,1768582115097,-300.0,0.00015392,2]
[402192009,1768582115119,-300.0,0.00015395,2]
[402192010,1768582115140,-4547.98361957,0.00015399,2]
[402192011,1768582157422,2171.06,0.00015175,2]
[402192012,1768582158002,-211.81856156,0.00015289,2]
[402192013,1768582158027,-193.80747418,0.00015344,2]
[402192014,1768582159391,-418.59807532,0.00015344,2]
[402192015,1768582159412,-300.0,0.00015344,2]
[402192016,1768582159433,-250.0,0.00015344,2]
[402192017,1768582159455,-193.55917639,0.00015344,2]
[402192018,1768582159480,-161.57385846,0.00015398,2]
[402192019,1768582186301,500.0,0.00015211,2]
[402192024,1768582232372,-259.0956586,0.00015398,2]
[402192026,1768582232416,-740.9043414,0.00015398,2]
[402192027,1768582232425,-300.0,0.00015398,2]
[402192028,1768582232434,-271.0,0.00015398,2]
[402192029,1768582232443,-300.0,0.00015398,2]
[402192030,1768582232456,-1200.0,0.00015398,2]
[402192031,1768582232465,-1893.72328287,0.00015399,2]
[402192038,1768582232548,-46050.43772331,0.00015399,2]
[402192039,1768582232558,-760.84495676,0.00015472,2]
[402192040,1768582232567,-166.66,0.0001548,2]
[402192041,1768582232577,-500.0,0.00015773,2]
[402192042,1768582232587,-549.42963918,0.00015773,2]
[402192043,1768582232596,-500.0,0.00015773,2]
[402192044,1768582232606,-500.85523386,0.00015773,2]
[402192045,1768582232615,-500.0,0.00015773,2]
[402192046,1768582232624,-500.0,0.00015773,2]
[402192047,1768582232634,-500.0,0.00015773,2]
[402192048,1768582232643,-500.0,0.00015773,2]
[402192049,1768582232656,-500.0,0.00015773,2]
[402192050,1768582232665,-500.0,0.00015773,2]
[402192051,1768582232675,-501.39853349,0.00015773,2]
[402192052,1768582232685,-412.99045558,0.00015773,2]
[402192053,1768582232694,-500.92276068,0.00015773,2]
[402192054,1768582232703,-500.0,0.00015773,2]
[402192055,1768582232713,-500.0,0.00015773,2]
[402192056,1768582232722,-411.35009775,0.00015773,2]
[402192057,1768582232731,-500.0,0.00015773,2]
[402192058,1768582232741,-500.0,0.00015773,2]
[402192059,1768582232750,-217.157295,0.00015773,2]
[402192060,1768582232762,-500.0,0.00015773,2]
[402192061,1768582232772,-1101.14,0.00015773,2]
[402192062,1768582232781,-14878.56465323,0.00015805,2]
[402192064,1768582238168,-3462.5452,0.00015705,2]
[402192065,1768582238178,-2538.35211925,0.00015805,2]
[402192066,1768582238222,-5823.34185269,0.00015805,2]
[402192067,1768582238233,-2224.17408572,0.00015805,2]
[402192068,1768582238329,-10811.04897343,0.00015805,2]
[402192069,1768582238339,-11680.91732497,0.00015825,2]
[402192070,1768582238348,-1000.0,0.00015908,2]
[402192071,1768582238358,-500.0,0.00015938,2]
[402192072,1768582238367,-151.0,0.00015958,2]
[402192073,1768582238376,-152.17,0.00015959,2]
[402192074,1768582238385,-151.0,0.00015959,2]
[402192075,1768582238395,-151.0,0.00015978,2]
[402192076,1768582238404,-151.0,0.00015978,2]
[402192077,1768582238414,-151.0,0.0001598,2]
[402192078,1768582238423,-151.0,0.0001598,2]
[402192079,1768582238434,-166.66,0.00015991,2]
[402192080,1768582238444,-1101.14,0.00016047,2]
[402192081,1768582238454,-209.03,0.00016093,2]
[402192082,1768582238464,-169.35,0.0001615,3]
[402192083,1768582238473,-156.07268442,0.0001616,2]
[402192084,1768582238482,-500.0,0.0001616,2]
[402192085,1768582238492,-542.9785735,0.0001616,2]
[402192086,1768582238502,-500.0,0.0001616,2]
[402192087,1768582238512,-500.0,0.0001616,2]
[402192089,1768582238521,-500.0,0.0001616,2]
[402192090,1768582238530,-500.0,0.0001616,2]
[402192092,1768582238540,-500.0,0.0001616,2]
[402192094,1768582238551,-500.0,0.0001616,2]
[402192096,1768582238560,-500.0,0.0001616,2]
[402192098,1768582238570,-500.0,0.0001616,2]
[402192101,1768582238580,-180.54156153,0.0001616,2]
[402192103,1768582238589,-500.0,0.0001616,2]
[402192105,1768582238598,-610.74558961,0.0001616,2]
[402192107,1768582238608,-500.0,0.0001616,2]
[402192110,1768582238617,-500.0,0.0001616,2]
[402192113,1768582238627,-500.0,0.0001616,2]
[402192115,1768582238637,-500.0,0.0001616,2]
[402192117,1768582238646,-500.0,0.0001616,2]
[402192119,1768582238655,-500.0,0.0001616,2]
[402192121,1768582238664,-500.0,0.0001616,2]
[402192123,1768582238673,-500.0,0.0001616,2]
[402192125,1768582238683,-500.0,0.0001616,2]
[402192127,1768582238693,-500.0,0.0001616,2]
[402192129,1768582238702,-500.0,0.0001616,2]
[402192132,1768582238712,-500.0,0.0001616,2]
[402192134,1768582238721,-500.0,0.0001616,2]
[402192136,1768582238732,-500.0,0.0001616,2]
[402192138,1768582238741,-500.0,0.0001616,2]
[402192139,1768582238750,-500.0,0.0001616,2]
[402192142,1768582238762,-500.0,0.0001616,2]
[402192144,1768582238773,-500.0,0.0001616,2]
[402192146,1768582238782,-500.0,0.0001616,2]
[402192148,1768582238792,-500.0,0.0001616,2]
[402192150,1768582238803,-500.0,0.0001616,2]
[402192152,1768582238813,-500.0,0.0001616,2]
[402192154,1768582238822,-500.0,0.0001616,2]
[402192156,1768582238832,-500.0,0.0001616,2]
[402192158,1768582238843,-500.0,0.0001616,2]
[402192160,1768582238852,-829.46912233,0.0001616,2]
[402192162,1768582238861,-829.46912233,0.0001616,2]
[402192164,1768582238871,-829.46912233,0.0001616,2]
[402192165,1768582238880,-829.46912233,0.0001616,2]
[402192167,1768582238889,-829.46912233,0.0001616,2]
[402192169,1768582238899,-829.46912233,0.0001616,2]
[402192171,1768582238908,-829.46912233,0.0001616,2]
[402192173,1768582238917,-829.46912233,0.0001616,2]
[402192175,1768582238927,-829.46912233,0.0001616,2]
[402192177,1768582238936,-829.46912233,0.0001616,2]
[402192179,1768582238947,-829.46912233,0.0001616,2]
[402192181,1768582238957,-829.46912233,0.0001616,2]
[402192183,1768582238966,-829.46912233,0.0001616,2]
[402192185,1768582238976,-829.46912233,0.0001616,2]
[402192187,1768582238987,-829.46912233,0.0001616,2]
[402192189,1768582238997,-829.46912233,0.0001616,2]
[402192191,1768582239006,-829.46912233,0.0001616,2]